fUSD/lending_fUSD_20240222
["ID","MTS","AMOUNT","RATE_DAILY","PERIOD"]
[314892407,1708625447270,-500.0,0.00032876,2]
[314892408,1708625447280,-542.13344838,0.00032876,2]
[314892409,1708625447289,-492.42921203,0.00032876,2]
[314892410,1708625447298,-502.58968469,0.00032876,2]
[314892411,1708625447307,-500.0,0.00032876,2]
[314892412,1708625447316,-500.0,0.00032876,2]
[314892413,1708625447325,-500.0,0.00032876,2]
[314892414,1708625447334,-614.80715465,0.00032876,2]
[314892415,1708625447344,-393.39252584,0.00032876,2]
[314892416,1708625447353,-500.0,0.00032876,2]
[314892417,1708625447362,-500.0,0.00032876,2]
[314892418,1708625447372,-500.0,0.00032876,2]
[314892419,1708625447381,-500.0,0.00032876,2]
[314892420,1708625447393,-500.0,0.00032876,2]
[314892421,1708625447402,-500.0,0.00032876,2]
[314892422,1708625447411,-500.0,0.00032876,2]
[314892423,1708625447421,-500.0,0.00032876,2]
[314892424,1708625447430,-500.0,0.00032876,2]
[314892425,1708625447439,-500.0,0.00032876,2]
[314892426,1708625447448,-500.0,0.00032876,2]
[314892427,1708625447457,-500.0,0.00032876,2]
[314892428,1708625447467,-500.0,0.00032876,2]
[314892429,1708625447476,-500.0,0.00032876,2]
[314892430,1708625447485,-500.0,0.00032876,2]
[314892431,1708625447494,-500.0,0.00032876,2]
[314892432,1708625447503,-500.0,0.00032876,2]
[314892433,1708625447512,-500.0,0.00032876,2]
[314892434,1708625447521,-500.0,0.00032876,2]
[314892435,1708625447531,-500.0,0.00032876,2]
[314892436,1708625447540,-500.0,0.00032876,2]
[314892437,1708625447549,-581.31223151,0.00032876,2]
[314892438,1708625447558,-564.23412234,0.00032876,2]
[314892439,1708625447567,-174.04227003,0.00032876,2]
[314892440,1708625447576,-505.29744216,0.00032876,2]
[314892441,1708625447585,-500.0,0.00032876,2]
[314892442,1708625447594,-500.0,0.00032876,2]
[314892443,1708625447604,-500.0,0.00032876,2]
[314892444,1708625447613,-500.0,0.00032876,2]
[314892445,1708625447623,-500.0,0.00032876,2]
[314892446,1708625447633,-330.04950211,0.00032876,2]
[314892447,1708625447643,-500.0,0.00032876,2]
[314892448,1708625447652,-500.0,0.00032876,2]
[314892449,1708625447662,-500.0,0.00032876,2]
[314892450,1708625447671,-500.0,0.00032876,2]
[314892451,1708625447681,-639.82381525,0.00032876,2]
[314892452,1708625447691,-500.0,0.00032876,2]
[314892453,1708625447700,-500.0,0.00032876,2]
[314892454,1708625447710,-500.0,0.00032876,2]
[314892455,1708625447720,-500.0,0.00032876,2]
[314892456,1708625447730,-500.0,0.00032876,2]
[314892457,1708625447739,-521.27061403,0.00032876,2]
[314892458,1708625447748,-500.0,0.00032876,2]
[314892459,1708625447757,-514.99,0.00032876,2]
[314892460,1708625447766,-511.39321809,0.00032876,2]
[314892461,1708625447776,-500.0,0.00032876,2]
[314892462,1708625447786,-500.0,0.00032876,2]
[314892463,1708625447795,-500.0,0.00032876,2]
[314892464,1708625447804,-555.79,0.00032876,2]
[314892465,1708625447814,-500.0,0.00032876,2]
[314892466,1708625447823,-440.88722607,0.00032876,2]
[314892467,1708625447832,-500.0,0.00032876,2]
[314892468,1708625447841,-500.0,0.00032876,2]
[314892469,1708625447852,-500.0,0.00032876,2]
[314892470,1708625447862,-500.0,0.00032876,2]
[314892471,1708625447875,-641.75,0.00032876,2]
[314892472,1708625447885,-507.21359313,0.00032876,2]
[314892473,1708625447895,-500.0,0.00032876,2]
[314892474,1708625447904,-500.0,0.00032876,2]
[314892475,1708625447913,-606.90862971,0.00032876,2]
[314892476,1708625447923,-500.0,0.00032876,2]
[314892477,1708625447932,-500.0,0.00032876,2]
[314892478,1708625447942,-500.0,0.00032876,2]
[314892479,1708625447952,-500.0,0.00032876,2]
[314892480,1708625447963,-506.03148042,0.00032876,2]
[314892481,1708625447972,-750.74,0.00032876,2]
[314892482,1708625447981,-500.0,0.00032876,2]
[314892483,1708625447990,-500.70934394,0.00032876,2]
[314892484,1708625447999,-500.0,0.00032876,2]
[314892485,1708625448009,-500.0,0.00032876,2]
[314892486,1708625448018,-505.36755252,0.00032876,2]
[314892487,1708625448027,-500.0,0.00032876,2]
[314892488,1708625448036,-500.0,0.00032876,2]
[314892489,1708625448046,-500.0,0.00032876,2]
[314892490,1708625448055,-500.0,0.00032876,2]
[314892491,1708625448064,-500.0,0.00032876,2]
[314892492,1708625448074,-500.0,0.00032876,2]
[314892493,1708625448083,-500.0,0.00032876,2]
[314892494,1708625448092,-500.0,0.00032876,2]
[314892495,1708625448103,-500.0,0.00032876,2]
[314892496,1708625448111,-236.23949214,0.00032876,2]
[314892497,1708625448121,-526.1433827,0.00032876,2]
[314892498,1708625448130,-542.31,0.00032876,2]
[314892499,1708625448142,-531.25561866,0.00032876,2]
[314892500,1708625448151,-579.35220245,0.00032876,2]
[314892501,1708625448160,-500.0,0.00032876,2]
[314892502,1708625448169,-500.0,0.00032876,2]
[314892503,1708625448179,-500.0,0.00032876,2]
[314892504,1708625448188,-621.21,0.00032876,2]
[314892505,1708625448198,-500.0,0.00032876,2]
[314892506,1708625448207,-518.72709323,0.00032876,2]
[314892507,1708625448216,-500.0,0.00032876,2]
[314892508,1708625448226,-507.0978988,0.00032876,2]
[314892509,1708625448235,-500.0,0.00032876,2]
[314892510,1708625448244,-500.0,0.00032876,2]
[314892511,1708625448253,-635.00867641,0.00032876,2]
[314892512,1708625448263,-502.03975329,0.00032876,2]
[314892513,1708625448272,-500.0,0.00032876,2]
[314892514,1708625448282,-528.61098883,0.00032876,2]
[314892515,1708625448291,-500.0,0.00032876,2]
[314892516,1708625448300,-500.0,0.00032876,2]
[314892517,1708625448309,-500.0,0.00032876,2]
[314892518,1708625448319,-500.0,0.00032876,2]
[314892519,1708625448329,-500.0,0.00032876,2]
[314892520,1708625448339,-500.0,0.00032876,2]
[314892521,1708625448348,-500.0,0.00032876,2]
[314892522,1708625448357,-500.0,0.00032876,2]
[314892523,1708625448367,-500.0,0.00032876,2]
[314892524,1708625448376,-240.90456687,0.00032876,2]
[314892525,1708625448386,-500.0,0.00032876,2]
[314892526,1708625448396,-500.0,0.00032876,2]
[314892527,1708625448405,-512.68000887,0.00032876,2]
[314892528,1708625448415,-250.0,0.00032876,2]
[314892529,1708625448426,-514.87140733,0.00032876,2]
[314892530,1708625448436,-500.0,0.00032876,2]
[314892531,1708625448445,-551.07,0.00032876,2]
[314892532,1708625448455,-500.0,0.00032876,2]
[314892533,1708625448465,-515.02302815,0.00032876,2]
[314892534,1708625448474,-643.92546405,0.00032876,2]
[314892535,1708625448483,-500.0,0.00032876,2]
[314892536,1708625448493,-512.3356694,0.00032876,2]
[314892537,1708625448502,-500.0,0.00032876,2]
[314892538,1708625448512,-506.6034302,0.00032876,2]
[314892539,1708625448521,-744.09,0.00032876,2]
[314892540,1708625448531,-500.0,0.00032876,2]
[314892541,1708625448540,-500.0,0.00032876,2]
[314892542,1708625448550,-208.36179212,0.00032876,2]
[314892543,1708625448559,-500.0,0.00032876,2]
[314892544,1708625448568,-500.0,0.00032876,2]
[314892545,1708625448577,-590.28875665,0.00032876,2]
[314892546,1708625448587,-500.0,0.00032876,2]
[314892547,1708625448597,-500.0,0.00032876,2]
[314892548,1708625448606,-501.49970926,0.00032876,2]
[314892549,1708625448615,-500.0,0.00032876,2]
[314892550,1708625448624,-500.0,0.00032876,2]
[314892551,1708625448633,-331.46940546,0.00032876,2]
[314892552,1708625448642,-500.0,0.00032876,2]
[314892553,1708625448651,-500.0,0.00032876,2]
[314892554,1708625448660,-540.37874123,0.00032876,2]
[314892555,1708625448670,-500.0,0.00032876,2]
[314892556,1708625448679,-500.0,0.00032876,2]
[314892557,1708625448688,-529.10222263,0.00032876,2]
[314892558,1708625448697,-500.0,0.00032876,2]
[314892559,1708625448705,-299.28865685,0.00032876,2]
[314892560,1708625448715,-500.0,0.00032876,2]
[314892561,1708625448723,-195.9195372,0.00032876,2]
[314892562,1708625448732,-500.0,0.00032876,2]
[314892563,1708625448757,-500.0,0.00032876,2]
[314892564,1708625448767,-573.53,0.00032876,2]
[314892565,1708625448777,-500.0,0.00032876,2]
[314892566,1708625448786,-500.0,0.00032876,2]
[314892567,1708625448795,-620.83007686,0.00032876,2]
[314892568,1708625448805,-500.0,0.00032876,2]
[314892569,1708625448815,-500.0,0.00032876,2]
[314892570,1708625448824,-500.0,0.00032876,2]
[314892571,1708625448834,-500.0,0.00032876,2]
[314892572,1708625448843,-500.0,0.00032876,2]
[314892573,1708625448853,-522.50338482,0.00032876,2]
[314892574,1708625448863,-500.0,0.00032876,2]
[314892575,1708625448874,-193.3525053,0.00032876,2]
[314892576,1708625448884,-506.08974472,0.00032876,2]
[314892577,1708625448895,-500.0,0.00032876,2]
[314892578,1708625448905,-500.0,0.00032876,2]
[314892579,1708625448914,-185.33246672,0.00032876,2]
[314892580,1708625448923,-500.0,0.00032876,2]
[314892581,1708625448933,-500.0,0.00032876,2]
[314892582,1708625448945,-500.0,0.00032876,2]
[314892583,1708625448955,-328.04347256,0.00032876,2]
[314892584,1708625448964,-500.0,0.00032876,2]
[314892585,1708625448974,-500.0,0.00032876,2]
[314892586,1708625448984,-500.0,0.00032876,2]
[314892587,1708625448993,-501.93585987,0.00032876,2]
[314892588,1708625449004,-421.94415422,0.00032876,2]
[314892589,1708625449013,-504.9352676,0.00032876,2]
[314892590,1708625449024,-500.0,0.00032876,2]
[314892591,1708625449035,-500.0,0.00032876,2]
[314892592,1708625449046,-1000.0,0.00032876,7]
[314892593,1708625449056,-307.51403042,0.00032876,2]
[314892594,1708625449067,-500.0,0.00032876,2]
[314892595,1708625449077,-500.0,0.00032876,2]
[314892596,1708625449087,-500.0,0.00032876,2]
[314892597,1708625449097,-500.0,0.00032876,2]
[314892598,1708625449106,-500.0,0.00032876,2]
[314892599,1708625449116,-500.0,0.00032876,2]
[314892600,1708625449125,-500.0,0.00032876,2]
[314892601,1708625449135,-500.0,0.00032876,2]
[314892602,1708625449144,-500.0,0.00032876,2]
[314892603,1708625449154,-524.07,0.00032876,2]
[314892604,1708625449163,-501.46564345,0.00032876,2]
[314892605,1708625449173,-509.42762734,0.00032876,2]
[314892606,1708625449182,-500.0,0.00032876,2]
[314892607,1708625449191,-153.30681954,0.00032876,2]
[314892608,1708625449201,-500.0,0.00032876,2]
[314892609,1708625449210,-500.0,0.00032876,2]
[314892610,1708625449220,-500.0,0.00032876,2]
[314892611,1708625449230,-500.0,0.00032876,2]
[314892612,1708625449239,-500.0,0.00032876,2]
[314892613,1708625449248,-500.0,0.00032876,2]
[314892614,1708625449258,-500.0,0.00032876,2]
[314892615,1708625449267,-500.0,0.00032876,2]
[314892616,1708625449276,-500.0,0.00032876,2]
[314892617,1708625449285,-500.0,0.00032876,2]
[314892618,1708625449295,-951.85,0.00032876,2]
[314892619,1708625449305,-500.0,0.00032876,2]
[314892620,1708625449315,-500.0,0.00032876,2]
[314892621,1708625449324,-926.28,0.00032876,2]
[314892622,1708625449334,-504.81548881,0.00032876,2]
[314892623,1708625449343,-500.0,0.00032876,2]
[314892624,1708625449353,-300.27771134,0.00032876,2]
[314892625,1708625449363,-500.0,0.00032876,2]
[314892626,1708625449374,-419.41212938,0.00032876,2]
[314892627,1708625449384,-744.11,0.00032876,2]
[314892628,1708625449394,-529.22,0.00032876,2]
[314892629,1708625449404,-500.0,0.00032876,2]
[314892630,1708625449414,-500.0,0.00032876,2]
[314892631,1708625449424,-178.08075211,0.00032876,2]
[314892632,1708625449439,-500.0,0.00032876,2]
[314892633,1708625449450,-500.0,0.00032876,2]
[314892634,1708625449461,-500.0,0.00032876,2]
[314892635,1708625449472,-500.0,0.00032876,2]
[314892636,1708625449482,-500.0,0.00032876,2]
[314892637,1708625449493,-500.0,0.00032876,2]
[314892638,1708625449504,-500.0,0.00032876,2]
[314892639,1708625449514,-1143.73,0.00032876,2]
[314892640,1708625449525,-500.0,0.00032876,2]
[314892641,1708625449535,-500.0,0.00032876,2]
[314892642,1708625449546,-295.74606545,0.00032876,2]
[314892643,1708625449556,-500.0,0.00032876,2]
[314892644,1708625449566,-500.0,0.00032876,2]
[314892645,1708625449576,-187.97382848,0.00032876,2]
[314892646,1708625449586,-500.0,0.00032876,2]
[314892647,1708625449596,-500.0,0.00032876,2]
[314892648,1708625449607,-779.36,0.00032876,2]
[314892649,1708625449617,-500.65609921,0.00032876,2]
[314892650,1708625449627,-500.0,0.00032876,2]
[314892651,1708625449824,-500.0,0.00032876,2]
[314892652,1708625449834,-500.0,0.00032876,2]
[314892653,1708625449845,-500.0,0.00032876,2]
[314892654,1708625449855,-635.41,0.00032876,2]
[314892655,1708625449869,-566.23122486,0.00032876,2]
[314892656,1708625449881,-555.19,0.00032876,2]
[314892657,1708625449892,-211.74714281,0.00032876,2]
[314892658,1708625449902,-500.0,0.00032876,2]
[314892659,1708625449912,-500.0,0.00032876,2]
[314892660,1708625449922,-500.0,0.00032876,2]
[314892661,1708625449931,-500.0,0.00032876,2]
[314892662,1708625449941,-500.0,0.00032876,2]
[314892663,1708625449951,-500.0,0.00032876,2]
[314892664,1708625449962,-500.0,0.00032876,2]
[314892665,1708625449971,-500.0,0.00032876,2]
[314892666,1708625449981,-500.0,0.00032876,2]
[314892667,1708625449991,-500.0,0.00032876,2]
[314892668,1708625450000,-395.51371809,0.00032876,2]
[314892669,1708625450010,-563.92910464,0.00032876,2]
[314892670,1708625450019,-500.0,0.00032876,2]
[314892671,1708625450029,-500.0,0.00032876,2]
[314892672,1708625450039,-500.0,0.00032876,2]
[314892673,1708625450048,-500.0,0.00032876,2]
[314892674,1708625450058,-500.0,0.00032876,2]
[314892675,1708625450067,-822.26,0.00032876,2]
[314892676,1708625450077,-769.66,0.00032876,2]
[314892677,1708625450090,-500.0,0.00032876,2]
[314892678,1708625450101,-500.0,0.00032876,2]
[314892679,1708625450111,-525.72661641,0.00032876,2]
[314892680,1708625450122,-500.0,0.00032876,2]
[314892681,1708625450132,-500.0,0.00032876,2]
[314892682,1708625450144,-500.0,0.00032876,2]
[314892683,1708625450153,-500.0,0.00032876,2]
[314892684,1708625450163,-500.0,0.00032876,2]
[314892685,1708625450173,-889.62,0.00032876,2]
[314892686,1708625450183,-634.08,0.00032876,2]
[314892687,1708625450193,-500.0,0.00032876,2]
[314892688,1708625450202,-500.0,0.00032876,2]
[314892689,1708625450212,-500.0,0.00032876,2]
[314892690,1708625450222,-567.01,0.00032876,2]
[314892691,1708625450232,-721.11,0.00032876,2]
[314892692,1708625450242,-561.25583977,0.00032876,2]
[314892693,1708625450252,-653.98,0.00032876,2]
[314892694,1708625450262,-500.0,0.00032876,2]
[314892695,1708625450273,-500.0,0.00032876,2]
[314892696,1708625450283,-659.59,0.00032876,2]
[314892697,1708625450293,-500.0,0.00032876,2]
[314892698,1708625450303,-500.0,0.00032876,2]
[314892699,1708625450313,-500.0,0.00032876,2]
[314892700,1708625450323,-500.0,0.00032876,2]
[314892701,1708625450334,-500.0,0.00032876,2]
[314892702,1708625450344,-500.0,0.00032876,2]
[314892703,1708625450354,-500.0,0.00032876,2]
[314892704,1708625450364,-514.02981637,0.00032876,2]
[314892705,1708625450374,-951.61,0.00032876,2]
[314892706,1708625450386,-627.93,0.00032876,2]
[314892707,1708625450398,-500.0,0.00032876,2]
[314892708,1708625450408,-500.0,0.00032876,2]
[314892709,1708625450418,-542.97357949,0.00032876,2]
[314892710,1708625450428,-500.0,0.00032876,2]
[314892711,1708625450438,-500.0,0.00032876,2]
[314892712,1708625450448,-1016.3,0.00032876,2]
[314892713,1708625450460,-500.0,0.00032876,2]
[314892714,1708625450471,-677.11,0.00032876,2]
[314892715,1708625450481,-500.0,0.00032876,2]
[314892716,1708625450491,-500.0,0.00032876,2]
[314892717,1708625450501,-746.18,0.00032876,2]
[314892718,1708625450511,-668.92,0.00032876,2]
[314892719,1708625450522,-500.0,0.00032876,2]
[314892720,1708625450532,-655.97,0.00032876,2]
[314892721,1708625450542,-500.0,0.00032876,2]
[314892722,1708625450552,-500.0,0.00032876,2]
[314892723,1708625450562,-500.0,0.00032876,2]
[314892724,1708625450572,-944.62,0.00032876,2]
[314892725,1708625450582,-500.0,0.00032876,2]
[314892726,1708625450592,-500.0,0.00032876,2]
[314892727,1708625450602,-537.86805442,0.00032876,2]
[314892728,1708625450612,-500.0,0.00032876,2]
[314892729,1708625450627,-505.17167283,0.00032876,2]
[314892730,1708625450637,-500.0,0.00032876,2]
[314892731,1708625450648,-500.0,0.00032876,2]
[314892732,1708625450659,-500.0,0.00032876,2]
[314892733,1708625450670,-804.18,0.00032876,2]
[314892734,1708625450680,-500.0,0.00032876,2]
[314892735,1708625450691,-535.66,0.00032876,2]
[314892736,1708625450701,-500.0,0.00032876,2]
[314892737,1708625450712,-500.0,0.00032876,2]
[314892738,1708625450721,-936.27,0.00032876,2]
[314892739,1708625450732,-524.20790145,0.00032876,2]
[314892740,1708625450742,-500.0,0.00032876,2]
[314892741,1708625450753,-500.0,0.00032876,2]
[314892742,1708625450763,-500.0,0.00032876,2]
[314892743,1708625450774,-573.6,0.00032876,2]
[314892744,1708625450784,-500.0,0.00032876,2]
[314892745,1708625450795,-500.0,0.00032876,2]
[314892746,1708625450805,-500.0,0.00032876,2]
[314892747,1708625450814,-500.0,0.00032876,2]
[314892748,1708625450824,-500.0,0.00032876,2]
[314892749,1708625450834,-505.12346844,0.00032876,2]
[314892750,1708625450844,-500.0,0.00032876,2]
[314892751,1708625450854,-573.73,0.00032876,2]
[314892752,1708625450865,-500.0,0.00032876,2]
[314892753,1708625450877,-500.0,0.00032876,2]
[314892754,1708625450887,-500.0,0.00032876,2]
[314892755,1708625450896,-906.98,0.00032876,2]
[314892756,1708625450906,-625.48,0.00032876,2]
[314892757,1708625450916,-532.95793462,0.00032876,2]
[314892758,1708625450926,-500.0,0.00032876,2]
[314892759,1708625450936,-500.0,0.00032876,2]
[314892760,1708625450946,-500.0,0.00032876,2]
[314892761,1708625450957,-512.06200669,0.00032876,2]
[314892762,1708625450966,-619.25,0.00032876,2]
[314892763,1708625450977,-171.48141235,0.00032876,2]
[314892764,1708625450986,-500.0,0.00032876,2]
[314892765,1708625450995,-500.0,0.00032876,2]
[314892766,1708625451005,-802.24,0.00032876,2]
[314892767,1708625451015,-500.0,0.00032876,2]
[314892768,1708625451025,-500.0,0.00032876,2]
[314892769,1708625451034,-500.0,0.00032876,2]
[314892770,1708625451045,-500.0,0.00032876,2]
[314892771,1708625451054,-553.85,0.00032876,2]
[314892772,1708625451064,-534.46809031,0.00032876,2]
[314892773,1708625451074,-951.64,0.00032876,2]
[314892774,1708625451084,-500.0,0.00032876,2]
[314892775,1708625451093,-367.94154407,0.00032876,2]
[314892776,1708625451103,-500.0,0.00032876,2]
[314892777,1708625451113,-500.0,0.00032876,2]
[314892778,1708625451122,-500.0,0.00032876,2]
[314892779,1708625451132,-500.0,0.00032876,2]
[314892780,1708625451145,-500.0,0.00032876,2]
[314892781,1708625451155,-557.99299764,0.00032876,2]
[314892782,1708625451165,-196.53724556,0.00032876,2]
[314892783,1708625451175,-694.67,0.00032876,2]
[314892784,1708625451184,-500.0,0.00032876,2]
[314892785,1708625451194,-991.06,0.00032876,2]
[314892786,1708625451204,-500.0,0.00032876,2]
[314892787,1708625451214,-500.0,0.00032876,2]
[314892788,1708625451223,-500.0,0.00032876,2]
[314892789,1708625451233,-676.95,0.00032876,2]
[314892790,1708625451243,-500.0,0.00032876,2]
[314892791,1708625451253,-764.63,0.00032876,2]
[314892792,1708625451263,-500.0,0.00032876,2]
[314892793,1708625451273,-508.78,0.00032876,2]
[314892794,1708625451282,-157.90354865,0.00032876,2]
[314892795,1708625451292,-503.58097272,0.00032876,2]
[314892796,1708625451302,-529.97437915,0.00032876,2]
[314892797,1708625451312,-281.36334341,0.00032876,2]
[314892798,1708625451322,-500.0,0.00032876,2]
[314892799,1708625451332,-500.0,0.00032876,2]
[314892800,1708625451342,-802.5,0.00032876,2]
[314892801,1708625451351,-506.54417946,0.00032876,2]
[314892802,1708625451361,-664.95,0.00032876,2]
[314892803,1708625451371,-500.0,0.00032876,2]
[314892804,1708625451381,-500.0,0.00032876,2]
[314892805,1708625451394,-500.0,0.00032876,2]
[314892806,1708625451404,-500.0,0.00032876,2]
[314892807,1708625451415,-500.0,0.00032876,2]
[314892808,1708625451424,-500.0,0.00032876,2]
[314892809,1708625451434,-500.0,0.00032876,2]
[314892810,1708625451444,-500.0,0.00032876,2]
[314892811,1708625451454,-500.0,0.00032876,2]
[314892812,1708625451464,-500.0,0.00032876,2]
[314892813,1708625451474,-500.0,0.00032876,2]
[314892814,1708625451484,-500.0,0.00032876,2]
[314892815,1708625451494,-500.0,0.00032876,2]
[314892816,1708625451504,-632.57,0.00032876,2]
[314892817,1708625451514,-692.13,0.00032876,2]
[314892818,1708625451524,-509.92,0.00032876,2]
[314892819,1708625451535,-517.58637176,0.00032876,2]
[314892820,1708625451545,-500.0,0.00032876,2]
[314892821,1708625451555,-500.0,0.00032876,2]
[314892822,1708625451564,-500.0,0.00032876,2]
[314892823,1708625451574,-500.0,0.00032876,2]
[314892824,1708625451584,-607.02,0.00032876,2]
[314892825,1708625451594,-521.38791096,0.00032876,2]
[314892826,1708625451604,-792.22,0.00032876,2]
[314892827,1708625451614,-500.0,0.00032876,2]
[314892828,1708625451624,-500.0,0.00032876,2]
[314892829,1708625451633,-1057.84,0.00032876,2]
[314892830,1708625451644,-500.0,0.00032876,2]
[314892831,1708625451654,-500.0,0.00032876,2]
[314892832,1708625451664,-967.9,0.00032876,2]
[314892833,1708625451675,-529.96643113,0.00032876,2]
[314892834,1708625451684,-1015.71,0.00032876,2]
[314892835,1708625451693,-500.0,0.00032876,2]
[314892836,1708625451703,-1057.91,0.00032876,2]
[314892837,1708625451713,-500.0,0.00032876,2]
[314892838,1708625451724,-500.0,0.00032876,2]
[314892839,1708625451734,-500.0,0.00032876,2]
[314892840,1708625451744,-500.0,0.00032876,2]
[314892841,1708625451754,-1562.84,0.00032876,2]
[314892842,1708625451763,-500.0,0.00032876,2]
[314892843,1708625451773,-500.0,0.00032876,2]
[314892844,1708625451783,-908.7,0.00032876,2]
[314892845,1708625451794,-503.56699792,0.00032876,2]
[314892846,1708625451806,-574.22,0.00032876,2]
[314892847,1708625451816,-501.65752488,0.00032876,2]
[314892848,1708625451827,-181.98978837,0.00032876,2]
[314892849,1708625451837,-500.0,0.00032876,2]
[314892850,1708625451847,-500.0,0.00032876,2]
[314892851,1708625451860,-500.0,0.00032876,2]
[314892852,1708625451871,-1195.95,0.00032876,2]
[314892853,1708625451880,-500.0,0.00032876,2]
[314892854,1708625451890,-500.0,0.00032876,2]
[314892855,1708625451900,-500.0,0.00032876,2]
[314892856,1708625451910,-711.8,0.00032876,2]
[314892857,1708625451920,-500.0,0.00032876,2]
[314892858,1708625451931,-500.0,0.00032876,2]
[314892859,1708625452247,-643.93,0.00032876,2]
[314892860,1708625452309,-1000.0,0.00032876,7]
[314892861,1708625452319,-500.0,0.00032876,2]
[314892862,1708625452329,-500.0,0.00032876,2]
[314892863,1708625452338,-690.36,0.00032876,2]
[314892864,1708625452348,-500.0,0.00032876,2]
[314892865,1708625452357,-582.2,0.00032876,2]
[314892866,1708625452367,-808.11,0.00032876,2]
[314892867,1708625452376,-623.27,0.00032876,2]
[314892868,1708625452386,-515.28007742,0.00032876,2]
[314892869,1708625452396,-500.0,0.00032876,2]
[314892870,1708625452406,-955.15,0.00032876,2]
[314892871,1708625452416,-500.0,0.00032876,2]
[314892872,1708625452425,-500.0,0.00032876,2]
[314892873,1708625452435,-500.0,0.00032876,2]
[314892874,1708625452446,-503.87210258,0.00032876,2]
[314892875,1708625452455,-500.0,0.00032876,2]
[314892876,1708625452464,-500.0,0.00032876,2]
[314892877,1708625452474,-497.37126,0.00032876,2]
[314892878,1708625452484,-500.0,0.00032876,2]
[314892879,1708625452493,-500.0,0.00032876,2]
[314892880,1708625452503,-520.41,0.00032876,2]
[314892881,1708625452512,-485.9089374,0.00032876,2]
[314892882,1708625452523,-500.0,0.00032876,2]
[314892883,1708625452533,-642.76,0.00032876,2]
[314892884,1708625452542,-500.0,0.00032876,2]
[314892885,1708625452551,-500.0,0.00032876,2]
[314892886,1708625452560,-500.0,0.00032876,2]
[314892887,1708625452570,-500.0,0.00032876,2]
[314892888,1708625452579,-500.0,0.00032876,2]
[314892889,1708625452589,-814.72,0.00032876,2]
[314892890,1708625452598,-763.81,0.00032876,2]
[314892891,1708625452607,-500.0,0.00032876,2]
[314892892,1708625452616,-500.0,0.00032876,2]
[314892893,1708625452625,-500.0,0.00032876,2]
[314892894,1708625452634,-500.0,0.00032876,2]
[314892895,1708625452643,-920.28,0.00032876,2]
[314892896,1708625452653,-494.76614434,0.00032876,2]
[314892897,1708625452662,-595.79,0.00032876,2]
[314892898,1708625452671,-500.0,0.00032876,2]
[314892899,1708625452680,-500.0,0.00032876,2]
[314892900,1708625452689,-553.53012533,0.00032876,2]
[314892901,1708625452699,-500.0,0.00032876,2]
[314892902,1708625452708,-616.74,0.00032876,2]
[314892903,1708625452718,-693.29,0.00032876,2]
[314892904,1708625452726,-704.13,0.00032876,2]
[314892905,1708625452736,-500.0,0.00032876,2]
[314892906,1708625452746,-970.8,0.00032876,2]